fUST/lending_fUST_20250718
["ID","MTS","AMOUNT","RATE_DAILY","PERIOD"]
[373076112,1752853854860,-734.68,0.00017843,2]
[373076114,1752853854869,-460.0,0.00017843,2]
[373076116,1752853854879,-460.0,0.00017843,2]
[373076117,1752853854888,-460.0,0.00017843,2]
[373076119,1752853854898,-460.0,0.00017843,2]
[373076121,1752853854907,-460.0,0.00017844,2]
[373076123,1752853854917,-460.0,0.00017844,2]
[373076125,1752853854927,-460.0,0.00017844,2]
[373076126,1752853854936,-1253.82,0.00017844,2]
[373076128,1752853854945,-460.0,0.00017844,2]
[373076130,1752853854955,-501.61,0.00017844,2]
[373076132,1752853854964,-460.0,0.00017844,2]
[373076134,1752853854975,-460.0,0.00017844,2]
[373076136,1752853854984,-460.0,0.00017844,2]
[373076137,1752853854993,-460.0,0.00017844,2]
[373076139,1752853855004,-622.24,0.00017844,2]
[373076141,1752853855014,-994.66,0.00017844,2]
[373076143,1752853855024,-460.0,0.00017848,2]
[373076145,1752853855034,-460.0,0.00017848,2]
[373076147,1752853855043,-460.0,0.00017848,2]
[373076148,1752853855053,-460.0,0.00017848,2]
[373076150,1752853855063,-460.0,0.00017848,2]
[373076152,1752853855072,-460.0,0.00017848,2]
[373076154,1752853855086,-460.0,0.00017848,2]
[373076156,1752853855096,-460.0,0.00017848,2]
[373076158,1752853855106,-460.0,0.00017848,2]
[373076159,1752853855116,-460.0,0.00017848,2]
[373076161,1752853855126,-460.0,0.00017848,2]
[373076163,1752853855136,-730.27,0.00017848,2]
[373076165,1752853855145,-460.0,0.00017848,2]
[373076167,1752853855156,-460.0,0.00017848,2]
[373076169,1752853855168,-460.0,0.00017848,2]
[373076171,1752853855178,-460.0,0.00017848,2]
[373076172,1752853855187,-460.0,0.00017848,2]
[373076174,1752853855196,-460.0,0.00017848,2]
[373076176,1752853855205,-390.75199455,0.00017848,2]
[373076179,1752853855222,-1875.07,0.00017848,2]
[373076181,1752853855241,-460.0,0.00017848,2]
[373076184,1752853855259,-460.0,0.00017848,2]
[373076186,1752853855278,-460.0,0.00017848,2]
[373076189,1752853855299,-460.0,0.00017848,2]
[373076191,1752853855316,-460.0,0.00017848,2]
[373076194,1752853855334,-460.0,0.00017848,2]
[373076196,1752853855349,-151.0,0.00017848,2]
[373076199,1752853855366,-460.0,0.00017848,2]
[373076202,1752853855384,-151.0,0.00017848,2]
[373076204,1752853855402,-460.0,0.00017848,2]
[373076206,1752853855418,-151.0,0.00017848,2]
[373076209,1752853855432,-460.0,0.00017848,2]
[373076211,1752853855451,-460.0,0.0001785,2]
[373076213,1752853855465,-1460.0,0.0001785,2]
[373076216,1752853855481,-460.0,0.0001785,2]
[373076218,1752853855494,-2349.99,0.0001785,2]
[373076220,1752853855509,-1576.88,0.00017851,2]
[373076223,1752853855527,-460.0,0.00017851,2]
[373076225,1752853855542,-6625.51,0.00017851,2]
[373076227,1752853855555,-1369.47,0.00017851,2]
[373076229,1752853855569,-509.9,0.00017855,2]
[373076232,1752853855584,-460.0,0.00017855,2]
[373076234,1752853855600,-460.0,0.00017855,2]
[373076236,1752853855614,-274.7616278,0.00017855,2]
[373076239,1752853855628,-460.0,0.00017855,2]
[373076241,1752853855643,-460.0,0.00017855,2]
[373076243,1752853855662,-460.0,0.00017855,2]
[373076245,1752853855676,-460.0,0.00017855,2]
[373076248,1752853855691,-460.0,0.00017855,2]
[373076250,1752853855706,-460.0,0.00017855,2]
[373076252,1752853855720,-1975.14,0.00017855,2]
[373076254,1752853855735,-569.1068489,0.00017855,2]
[373076257,1752853855748,-460.0,0.00017855,2]
[373076259,1752853855764,-728.422982,0.00017855,2]
[373076261,1752853855777,-728.422982,0.00017855,2]
[373076263,1752853855792,-168.23100505,0.00017855,2]
[373076265,1752853855804,-5095.88,0.00017855,2]
[373076267,1752853855814,-2971.46607155,0.00017885,2]
[373076269,1752853855824,-7309.23847239,0.00017887,2]
[373076271,1752853855833,-171.07656189,0.00017976,2]
[373076273,1752853855844,-420.0,0.00017995,2]
[373076274,1752853855853,-1200.0,0.00017997,2]
[373076276,1752853855862,-151.0,0.00018,2]
[373076278,1752853855872,-151.0,0.00018,2]
[373076280,1752853855882,-151.0,0.00018,2]
[373076282,1752853855891,-2140.223847,0.00018003,2]
[373076283,1752853855901,-318.91407752,0.00018073,2]
[373076285,1752853855911,-500.0,0.00018073,2]
[373076287,1752853855921,-500.0,0.00018073,2]
[373076289,1752853855931,-211.91057932,0.00018073,2]
[373076291,1752853855940,-500.0,0.00018073,2]
[373076293,1752853855950,-500.0,0.00018073,2]
[373076308,1752853856123,-232.26656318,0.00018073,2]
[373076310,1752853856139,-500.0,0.00018073,2]
[373076312,1752853856149,-500.0,0.00018073,2]
[373076314,1752853856159,-500.0,0.00018073,2]
[373076316,1752853856168,-500.0,0.00018073,2]
[373076318,1752853856178,-500.0,0.00018073,2]
[373076320,1752853856187,-511.33106895,0.00018073,2]
[373076322,1752853856197,-501.99323963,0.00018073,2]
[373076324,1752853856206,-501.15315688,0.00018073,2]
[373076326,1752853856216,-447.25412963,0.00018073,2]
[373076328,1752853856226,-458.25357939,0.00018073,2]
[373076330,1752853856235,-500.0,0.00018073,2]
[373076332,1752853856245,-500.0,0.00018073,2]
[373076334,1752853856256,-500.0,0.00018073,2]
[373076336,1752853856267,-500.0,0.00018073,2]
[373076338,1752853856277,-500.0,0.00018073,2]
[373076340,1752853856287,-500.0,0.00018073,2]
[373076342,1752853856296,-262716.41665754,0.00018076,2]
[373076344,1752853856306,-151.0,0.00018076,2]
[373076346,1752853856315,-151.0,0.00018076,2]
[373076348,1752853856325,-151.0,0.00018076,2]
[373076350,1752853856335,-151.0,0.00018076,2]
[373076352,1752853856344,-151.0,0.00018076,2]
[373076354,1752853856354,-151.0,0.00018076,2]
[373076356,1752853856364,-151.0,0.00018076,2]
[373076358,1752853856373,-151.0,0.00018076,2]
[373076360,1752853856382,-343.325456,0.00018076,2]
[373076362,1752853856392,-343.325456,0.00018076,2]
[373076364,1752853856401,-151.0,0.00018076,2]
[373076366,1752853856411,-151.0,0.00018076,2]
[373076368,1752853856420,-728.422982,0.00018076,2]
[373076370,1752853856430,-151.0,0.00018076,2]
[373076372,1752853856439,-728.422982,0.00018076,2]
[373076374,1752853856449,-151.0,0.00018076,2]
[373076376,1752853856458,-160.0,0.00018082,2]
[373076378,1752853856468,-160.0,0.00018082,2]
[373076380,1752853856477,-160.0,0.00018082,2]
[373076382,1752853856486,-214.4881157,0.00018082,2]
[373076384,1752853856495,-525.75194068,0.00018082,2]
[373076386,1752853856507,-12610.43989422,0.00018082,2]
[373076388,1752853856518,-160.0,0.00018082,2]
[373076390,1752853856527,-160.0,0.00018082,2]
[373076392,1752853856537,-230.89969799,0.00018082,2]
[373076394,1752853856546,-160.0,0.00018082,2]
[373076396,1752853856556,-215.63268315,0.00018082,2]
[373076398,1752853856565,-476.25663856,0.00018082,2]
[373076400,1752853856574,-839.30593155,0.00018082,2]
[373076402,1752853856585,-160.0,0.00018082,2]
[373076404,1752853856595,-160.0,0.00018082,2]
[373076406,1752853856604,-160.0,0.00018082,2]
[373076408,1752853856614,-460.0,0.00018112,2]
[373076410,1752853856623,-460.0,0.00018112,2]
[373076412,1752853856632,-460.0,0.00018112,2]
[373076414,1752853856642,-460.0,0.00018113,2]
[373076416,1752853856651,-460.0,0.00018113,2]
[373076418,1752853856662,-460.0,0.00018113,2]
[373076420,1752853856671,-460.0,0.00018113,2]
[373076422,1752853856681,-2174.21,0.00018113,2]
[373076424,1752853856690,-460.0,0.00018114,2]
[373076426,1752853856699,-3492.55,0.00018114,2]
[373076428,1752853856709,-1022.73,0.00018114,2]
[373076430,1752853856718,-460.0,0.00018114,2]
[373076432,1752853856728,-460.0,0.00018114,2]
[373076434,1752853856738,-460.0,0.00018114,2]
[373076436,1752853856747,-460.0,0.00018114,2]
[373076438,1752853856759,-2783.98,0.00018114,2]
[373076440,1752853856768,-460.0,0.00018114,2]
[373076442,1752853856777,-2271.83,0.00018114,2]
[373076444,1752853856787,-460.0,0.00018114,2]
[373076446,1752853856797,-5610.71,0.00018114,2]
[373076448,1752853856806,-547.21,0.00018114,2]
[373076450,1752853856815,-460.0,0.00018114,2]
[373076452,1752853856825,-460.0,0.00018115,2]
[373076454,1752853856834,-460.0,0.00018115,2]
[373076456,1752853856843,-460.0,0.00018115,2]
[373076458,1752853856853,-2538.12,0.00018115,2]
[373076460,1752853856862,-460.0,0.00018117,2]
[373076462,1752853856871,-460.0,0.00018117,2]
[373076463,1752853856880,-460.0,0.00018117,2]
[373076464,1752853856890,-460.0,0.00018117,2]
[373076465,1752853856899,-460.0,0.00018117,2]
[373076466,1752853856908,-597.54313279,0.00018117,2]
[373076467,1752853856917,-460.0,0.00018117,2]
[373076468,1752853856926,-460.0,0.00018117,2]
[373076469,1752853856935,-460.0,0.00018117,2]
[373076470,1752853856944,-460.0,0.00018117,2]
[373076471,1752853856954,-460.0,0.00018117,2]
[373076472,1752853856962,-460.0,0.00018117,2]
[373076473,1752853856971,-460.0,0.00018117,2]
[373076474,1752853856980,-460.0,0.00018117,2]
[373076475,1752853856989,-460.0,0.00018117,2]
[373076476,1752853856999,-460.0,0.00018117,2]
[373076477,1752853857009,-460.0,0.00018117,2]
[373076478,1752853857018,-876.51,0.00018117,2]
[373076479,1752853857027,-460.0,0.00018117,2]
[373076480,1752853857036,-460.0,0.00018117,2]
[373076481,1752853857045,-460.0,0.00018117,2]
[373076482,1752853857055,-460.0,0.00018117,2]
[373076483,1752853857063,-460.0,0.00018117,2]
[373076484,1752853857073,-248.62379745,0.00018117,2]
[373076485,1752853857084,-460.0,0.00018117,2]
[373076486,1752853857093,-603.3,0.00018117,2]
[373076487,1752853857102,-460.0,0.00018117,2]
[373076488,1752853857111,-484.25,0.00018117,2]
[373076489,1752853857120,-1052.91,0.00018117,2]
[373076490,1752853857130,-558.87,0.00018117,2]
[373076491,1752853857139,-734.68,0.00018117,2]
[373076492,1752853857148,-460.0,0.00018117,2]
[373076493,1752853857158,-460.0,0.00018117,2]
[373076494,1752853857167,-460.0,0.00018117,2]
[373076495,1752853857177,-460.0,0.00018118,2]
[373076496,1752853857186,-402.70104669,0.00018118,2]
[373076497,1752853857195,-460.0,0.00018118,2]
[373076498,1752853857205,-1253.82,0.00018118,2]
[373076499,1752853857216,-460.0,0.00018118,2]
[373076500,1752853857225,-501.61,0.00018118,2]
[373076501,1752853857234,-460.0,0.00018118,2]
[373076502,1752853857243,-460.0,0.00018118,2]
[373076503,1752853857254,-460.0,0.00018118,2]
[373076504,1752853857264,-622.24,0.00018118,2]
[373076505,1752853857273,-994.66,0.00018118,2]
[373076506,1752853857282,-460.0,0.00018122,2]
[373076507,1752853857291,-282.51810709,0.00018122,2]
[373076508,1752853857300,-460.0,0.00018122,2]
[373076509,1752853857309,-460.0,0.00018122,2]
[373076510,1752853857318,-460.0,0.00018122,2]
[373076511,1752853857327,-460.0,0.00018122,2]
[373076512,1752853857336,-460.0,0.00018122,2]
[373076513,1752853857346,-460.0,0.00018122,2]
[373076514,1752853857355,-460.0,0.00018122,2]
[373076515,1752853857364,-460.0,0.00018122,2]
[373076516,1752853857373,-460.0,0.00018122,2]
[373076517,1752853857382,-730.27,0.00018122,2]
[373076518,1752853857392,-460.0,0.00018122,2]
[373076519,1752853857401,-460.0,0.00018122,2]
[373076520,1752853857410,-460.0,0.00018122,2]
[373076521,1752853857419,-460.0,0.00018122,2]
[373076522,1752853857428,-164.1,0.00018122,2]
[373076523,1752853857438,-460.0,0.00018122,2]
[373076524,1752853857447,-1875.07,0.00018122,2]
[373076525,1752853857456,-460.0,0.00018122,2]
[373076526,1752853857465,-460.0,0.00018122,2]
[373076527,1752853857475,-460.0,0.00018122,2]
[373076528,1752853857486,-460.0,0.00018122,2]
[373076529,1752853857496,-460.0,0.00018122,2]
[373076530,1752853857507,-460.0,0.00018122,2]
[373076532,1752853857516,-460.0,0.00018122,2]
[373076533,1752853857526,-460.0,0.00018122,2]
[373076535,1752853857535,-460.0,0.00018122,2]
[373076536,1752853857545,-151.0,0.00018124,2]
[373076537,1752853857554,-151.0,0.00018124,2]
[373076539,1752853857563,-315.999114,0.00018124,2]
[373076541,1752853857572,-315.999114,0.00018124,2]
[373076543,1752853857582,-460.0,0.00018124,2]
[373076545,1752853857591,-1460.0,0.00018124,2]
[373076547,1752853857600,-460.0,0.00018124,2]
[373076548,1752853857609,-2349.99,0.00018124,2]
[373076551,1752853857619,-1576.88,0.00018125,2]
[373076552,1752853857629,-460.0,0.00018125,2]
[373076555,1752853857638,-6625.51,0.00018125,2]
[373076556,1752853857648,-1369.47,0.00018125,2]
[373076558,1752853857659,-509.9,0.00018129,2]
[373076560,1752853857669,-460.0,0.00018129,2]
[373076561,1752853857678,-460.0,0.00018129,2]
[373076562,1752853857688,-460.0,0.00018129,2]
[373076564,1752853857697,-460.0,0.00018129,2]
[373076566,1752853857707,-460.0,0.00018129,2]
[373076568,1752853857716,-460.0,0.00018129,2]
[373076570,1752853857725,-460.0,0.00018129,2]
[373076572,1752853857735,-1975.14,0.00018129,2]
[373076574,1752853857745,-460.0,0.00018129,2]
[373076576,1752853857757,-5095.88,0.00018129,2]
[373076578,1752853857766,-7309.23847239,0.00018129,2]
[373076580,1752853857776,-160.0,0.00018197,2]
[373076582,1752853857785,-151.0,0.000182,2]
[373076584,1752853857795,-293.42668785,0.00018213,2]
[373076586,1752853857804,-731.4097255,0.00018213,2]
[373076588,1752853857813,-2140.223847,0.00018279,2]
[373076590,1752853857823,-155.0,0.00018301,3]
[373076592,1752853857833,-460.0,0.00018386,2]
[373076594,1752853857842,-383.90363836,0.00018386,2]
[373076596,1752853857852,-460.0,0.00018386,2]
[373076598,1752853857862,-460.0,0.00018387,2]
[373076600,1752853857871,-460.0,0.00018387,2]
[373076602,1752853857881,-460.0,0.00018387,2]
[373076604,1752853857890,-460.0,0.00018387,2]
[373076606,1752853857900,-2174.21,0.00018387,2]
[373076608,1752853857909,-460.0,0.00018388,2]
[373076610,1752853857919,-3492.55,0.00018388,2]
[373076612,1752853857928,-1022.73,0.00018388,2]
[373076614,1752853857937,-460.0,0.00018388,2]
[373076616,1752853857947,-460.0,0.00018388,2]
[373076618,1752853857956,-460.0,0.00018388,2]
[373076620,1752853857966,-2783.98,0.00018388,2]
[373076622,1752853857975,-460.0,0.00018388,2]
[373076624,1752853857984,-2271.83,0.00018388,2]
[373076626,1752853857994,-460.0,0.00018388,2]
[373076628,1752853858005,-5610.71,0.00018388,2]
[373076630,1752853858015,-547.21,0.00018388,2]
[373076632,1752853858024,-460.0,0.00018388,2]
[373076634,1752853858034,-460.0,0.00018389,2]
[373076636,1752853858044,-460.0,0.00018389,2]
[373076638,1752853858054,-2538.12,0.00018389,2]
[373076640,1752853858063,-460.0,0.00018391,2]
[373076642,1752853858072,-460.0,0.00018391,2]
[373076644,1752853858085,-460.0,0.00018391,2]
[373076646,1752853858094,-460.0,0.00018391,2]
[373076648,1752853858105,-460.0,0.00018391,2]
[373076650,1752853858115,-460.0,0.00018391,2]
[373076652,1752853858125,-460.0,0.00018391,2]
[373076654,1752853858134,-460.0,0.00018391,2]
[373076656,1752853858143,-460.0,0.00018391,2]
[373076658,1752853858152,-460.0,0.00018391,2]
[373076660,1752853858163,-460.0,0.00018391,2]
[373076662,1752853858172,-460.0,0.00018391,2]
[373076664,1752853858182,-460.0,0.00018391,2]
[373076666,1752853858192,-460.0,0.00018391,2]
[373076668,1752853858203,-876.51,0.00018391,2]
[373076670,1752853858214,-604.05,0.00018391,2]
[373076672,1752853858224,-460.0,0.00018391,2]
[373076674,1752853858235,-460.0,0.00018391,2]
[373076676,1752853858247,-460.0,0.00018391,2]
[373076678,1752853858258,-460.0,0.00018391,2]
[373076680,1752853858268,-460.0,0.00018391,2]
[373076682,1752853858277,-603.3,0.00018391,2]
[373076684,1752853858286,-460.0,0.00018391,2]
[373076686,1752853858296,-484.25,0.00018391,2]
[373076687,1752853858305,-1052.91,0.00018391,2]
[373076688,1752853858315,-558.87,0.00018391,2]
[373076689,1752853858325,-734.68,0.00018391,2]
[373076690,1752853858334,-460.0,0.00018391,2]
[373076691,1752853858344,-460.0,0.00018391,2]
[373076692,1752853858354,-460.0,0.00018391,2]
[373076693,1752853858364,-460.0,0.00018392,2]
[373076694,1752853858373,-460.0,0.00018392,2]
[373076695,1752853858383,-1253.82,0.00018392,2]
[373076696,1752853858393,-460.0,0.00018392,2]
[373076698,1752853858403,-501.61,0.00018392,2]
[373076699,1752853858413,-460.0,0.00018392,2]
[373076700,1752853858423,-460.0,0.00018392,2]
[373076701,1752853858432,-460.0,0.00018392,2]
[373076702,1752853858442,-622.24,0.00018392,2]
[373076703,1752853858452,-994.66,0.00018392,2]
[373076704,1752853858462,-460.0,0.00018396,2]
[373076705,1752853858471,-471.94,0.00018396,2]
[373076706,1752853858481,-460.0,0.00018396,2]
[373076707,1752853858491,-460.0,0.00018396,2]
[373076708,1752853858500,-460.0,0.00018396,2]
[373076709,1752853858510,-460.0,0.00018396,2]
[373076710,1752853858646,-460.0,0.00018396,2]
[373076711,1752853858657,-460.0,0.00018396,2]
[373076712,1752853858667,-582.3812801,0.00018396,2]
[373076713,1752853858676,-460.0,0.00018396,2]
[373076714,1752853858686,-730.27,0.00018396,2]
[373076715,1752853858695,-460.0,0.00018396,2]
[373076716,1752853858706,-460.0,0.00018396,2]
[373076717,1752853858716,-460.0,0.00018396,2]
[373076718,1752853858726,-460.0,0.00018396,2]
[373076719,1752853858736,-460.0,0.00018396,2]
[373076720,1752853858747,-1875.07,0.00018396,2]
[373076721,1752853858760,-460.0,0.00018396,2]
[373076722,1752853858770,-460.0,0.00018396,2]
[373076723,1752853858780,-460.0,0.00018396,2]
[373076724,1752853858789,-460.0,0.00018396,2]
[373076726,1752853858799,-460.0,0.00018396,2]
[373076727,1752853858809,-518.87916651,0.00018396,2]
[373076729,1752853858818,-460.0,0.00018396,2]
[373076731,1752853858828,-460.0,0.00018396,2]
[373076733,1752853858838,-460.0,0.00018396,2]
[373076734,1752853858847,-460.0,0.00018398,2]
[373076735,1752853858857,-1460.0,0.00018398,2]
[373076736,1752853858866,-460.0,0.00018398,2]
[373076737,1752853858876,-2349.99,0.00018398,2]
[373076738,1752853858886,-151.0,0.00018399,2]
[373076739,1752853858895,-151.0,0.00018399,2]
[373076740,1752853858904,-151.0,0.00018399,2]
[373076741,1752853858915,-1576.88,0.00018399,2]
[373076742,1752853858926,-460.0,0.00018399,2]
[373076743,1752853858936,-6625.51,0.00018399,2]
[373076744,1752853858945,-1369.47,0.00018399,2]
[373076745,1752853858954,-509.9,0.00018403,2]
[373076747,1752853858964,-460.0,0.00018403,2]
[373076748,1752853858973,-460.0,0.00018403,2]
[373076749,1752853858983,-460.0,0.00018403,2]
[373076750,1752853858992,-460.0,0.00018403,2]
[373076751,1752853859003,-209.94035139,0.00018403,2]
[373076752,1752853859012,-460.0,0.00018403,2]
[373076753,1752853859022,-460.0,0.00018403,2]
[373076754,1752853859032,-1975.14,0.00018403,2]
[373076755,1752853859041,-460.0,0.00018403,2]
[373076756,1752853859050,-5095.88,0.00018403,2]
[373076757,1752853859060,-151.0,0.00018404,2]
[373076758,1752853859069,-315.999114,0.00018404,2]
[373076759,1752853859079,-315.999114,0.00018404,2]
[373076760,1752853859092,-151.0,0.00018496,2]
[373076761,1752853859102,-151.0,0.00018496,2]
[373076762,1752853859111,-166.764076,0.00018496,2]
[373076763,1752853859121,-151.0,0.00018496,2]
[373076764,1752853859131,-151.0,0.00018497,2]
[373076765,1752853859141,-3801.642,0.00018497,2]
[373076766,1752853859151,-500.0,0.00018497,2]
[373076767,1752853859162,-500.0,0.00018497,2]
[373076768,1752853859172,-151.0,0.00018497,2]
[373076769,1752853859182,-151.0,0.00018497,2]
[373076770,1752853859192,-500.0,0.00018497,2]
[373076771,1752853859202,-151.0,0.00018497,2]
[373076772,1752853859212,-151.0,0.00018497,2]
[373076773,1752853859221,-151.0,0.00018497,2]
[373076774,1752853859231,-500.0,0.00018497,2]
[373076775,1752853859242,-151.0,0.00018497,2]
[373076776,1752853859251,-151.0,0.00018497,2]
[373076777,1752853859263,-151.0,0.00018497,2]
[373076778,1752853859272,-500.0,0.00018497,2]
[373076779,1752853859282,-153.71418643,0.00018497,2]
[373076780,1752853859291,-151.0,0.00018497,2]
[373076781,1752853859300,-151.0,0.00018497,2]
[373076782,1752853859310,-500.0,0.00018497,2]
[373076783,1752853859319,-151.0,0.00018497,2]
[373076784,1752853859329,-151.0,0.00018497,2]
[373076785,1752853859339,-500.0,0.00018497,2]
[373076786,1752853859348,-151.0,0.00018497,2]
[373076787,1752853859358,-151.0,0.00018497,2]
[373076788,1752853859367,-500.0,0.00018497,2]
[373076789,1752853859377,-151.0,0.00018497,2]
[373076790,1752853859386,-151.0,0.00018497,2]
[373076791,1752853859396,-500.0,0.00018497,2]
[373076792,1752853859405,-151.0,0.00018497,2]
[373076793,1752853859414,-151.0,0.00018497,2]
[373076794,1752853859424,-500.0,0.00018497,2]
[373076795,1752853859434,-207.4,0.00018497,2]
[373076796,1752853859443,-151.0,0.00018497,2]
[373076797,1752853859454,-500.0,0.00018497,2]
[373076798,1752853859464,-151.0,0.00018497,2]
[373076799,1752853859475,-151.0,0.00018497,2]
[373076800,1752853859485,-25000.0,0.00018497,2]
[373076801,1752853859494,-151.0,0.00018497,2]
[373076802,1752853859505,-500.0,0.00018497,2]
[373076803,1752853859515,-151.0,0.00018497,2]
[373076804,1752853859524,-500.0,0.00018497,2]
[373076805,1752853859533,-151.0,0.00018497,2]
[373076806,1752853859543,-151.0,0.00018497,2]
[373076807,1752853859553,-153.81877425,0.00018497,2]
[373076808,1752853859562,-500.0,0.00018497,2]
[373076809,1752853859572,-151.0,0.00018497,2]
[373076810,1752853859581,-14556.90318565,0.00018497,2]
[373076811,1752853859591,-151.0,0.00018497,2]
[373076812,1752853859600,-151.0,0.00018497,2]
[373076813,1752853859609,-500.0,0.00018497,2]
[373076814,1752853859618,-151.0,0.00018497,2]
[373076815,1752853859628,-151.0,0.00018497,2]
[373076816,1752853859637,-500.0,0.00018497,2]
[373076817,1752853859646,-151.0,0.00018497,2]
[373076819,1752853859656,-151.0,0.00018497,2]
[373076821,1752853859666,-500.0,0.00018497,2]
[373076823,1752853859676,-151.0,0.00018497,2]
[373076825,1752853859686,-151.0,0.00018497,2]
[373076827,1752853859696,-500.0,0.00018497,2]
[373076829,1752853859706,-151.0,0.00018497,2]
[373076831,1752853859715,-500.0,0.00018497,2]
[373076832,1752853859725,-151.0,0.00018497,2]
[373076834,1752853859734,-151.0,0.00018497,2]
[373076836,1752853859743,-500.0,0.00018497,2]
[373076838,1752853859754,-151.0,0.00018497,2]
[373076840,1752853859763,-500.0,0.00018497,2]
[373076841,1752853859773,-151.0,0.00018497,2]
[373076843,1752853859782,-512.35521212,0.00018497,2]
[373076845,1752853859792,-3942.302754,0.00018552,2]
[373076846,1752853859802,-728.422982,0.00018552,2]
[373076848,1752853859811,-728.422982,0.00018552,2]
[373076850,1752853859821,-2140.223847,0.00018555,2]
[373076851,1752853859831,-4088.1679559,0.00018607,2]
[373076852,1752853859840,-259.195109,0.00018607,2]
[373076853,1752853859849,-151.0,0.00018607,2]
[373076854,1752853859859,-151.0,0.00018607,2]
[373076855,1752853859869,-343.325456,0.00018607,2]
[373076856,1752853859878,-343.325456,0.00018607,2]
[373076857,1752853859888,-7309.23847239,0.00018618,2]
[373076858,1752853859898,-1000.0,0.00018621,2]
[373076859,1752853859907,-501.48525165,0.00018621,2]
[373076860,1752853859917,-1000.0,0.00018621,2]
[373076861,1752853859927,-500.0,0.00018621,2]
[373076862,1752853859937,-500.53245827,0.00018621,2]
[373076863,1752853859947,-1000.0,0.00018621,2]
[373076864,1752853859956,-501.4774378,0.00018621,2]
[373076865,1752853859965,-1000.0,0.00018621,2]
[373076866,1752853859975,-1000.0,0.00018621,2]
[373076867,1752853859987,-842.96839752,0.00018621,2]
[373076868,1752853859997,-481.09729519,0.00018621,2]
[373076869,1752853860008,-1000.0,0.00018621,2]
[373076870,1752853860017,-501.17731979,0.00018655,2]
[373076871,1752853860027,-505.82283817,0.00018655,2]
[373076872,1752853860037,-500.0,0.00018655,2]
[373076873,1752853860047,-500.0,0.00018655,2]
[373076874,1752853860056,-500.0,0.00018655,2]
[373076875,1752853860066,-460.0,0.0001866,2]
[373076876,1752853860076,-460.0,0.00018661,2]
[373076877,1752853860089,-460.0,0.00018661,2]
[373076878,1752853860100,-460.0,0.00018661,2]
[373076879,1752853860111,-460.0,0.00018661,2]
[373076880,1752853860121,-2174.21,0.00018661,2]
[373076881,1752853860133,-4239.43017027,0.00018662,2]
[373076882,1752853860143,-460.0,0.00018662,2]
[373076883,1752853860154,-3492.55,0.00018662,2]
[373076884,1752853860166,-1022.73,0.00018662,2]
[373076885,1752853860176,-460.0,0.00018662,2]
[373076886,1752853860186,-460.0,0.00018662,2]
[373076887,1752853860197,-550.22,0.00018662,2]
[373076888,1752853860208,-2783.98,0.00018662,2]
[373076889,1752853860217,-460.0,0.00018662,2]
[373076890,1752853860227,-2271.83,0.00018662,2]
[373076891,1752853860237,-460.0,0.00018662,2]